[Event "Polonia Wroclaw Masters Cup-IM"]
[Site "Wroclaw"]
[Date "2019.05.01"]
[Round "4.1"]
[White "Krzywda, Andrzej"]
[Black "Praczukowski, Stanislaw"]
[Result "1/2-1/2"]
[ECO "A45"]
[WhiteElo "2195"]
[BlackElo "2190"]
[Annotator "NA"]
[PlyCount "138"]
[EventDate "2019.04.28"]
[EventType "tourn"]
[EventCountry "POL"]
[SourceTitle "playchess.com"]
[Source "ChessBase"]
[SourceQuality "1"]
[TimeControl "40/5400+30:900+30"]

1. d4 {[%emt 0:00:00]} Nf6 {[%emt 0:00:00]} 2. Bg5 {[%emt 0:00:00]} c6 {[%emt 0:02:45]} 3. Bxf6 {[%emt 0:04:25]} exf6 {[%emt 0:00:58]} 4. e3 {[%emt 0:00:23]} d5 {[%emt 0:01:01]} 5. g3 {[%emt 0:00:42]} Qb6 {[%emt 0:01:44]} 6. b3 {[%emt 0:01:13]} Bd6 {[%emt 0:05:18]} 7. Bg2 {[%emt 0:01:22]} O-O {[%emt 0:16:19]} 8. Ne2 {[%emt 0:00:14]} Be6 {[%emt 0:00:14]} 9. O-O {[%emt 0:00:48]} Nd7 {[%emt 0:00:06]} 10. Nd2 {[%emt 0:00:55]} Qa6 {[%emt 0:01:46]} 11. Re1 {[%emt 0:05:57]} f5 {[%emt 0:04:34]} 12. Bf1 {[%emt 0:05:34]} Nf6 $11 {[%emt 0:01:56]} 13. f3 {[%emt 0:12:01]} Qa5 {[%emt 0:04:10]} 14. a3 {[%emt 0:02:36]} Rae8 {[%emt 0:05:28]} 15. b4 {[%emt 0:07:54]} Qd8 {[%emt 0:03:11]} 16. Nf4 {[%emt 0:00:59]} Bc8 {[%emt 0:03:55]} 17. Bg2 {[%emt 0:04:00]} Re7 {[%emt 0:03:35]} 18. Nb3 {[%emt 0:01:48]} Rfe8 {[%emt 0:01:07]} 19. Qd2 {[%emt 0:00:31]} b6 {[%emt 0:04:13]} 20. Rad1 {[%emt 0:01:40]} Ba6 {[%emt 0:00:54]} 21. Nc1 {[%emt 0:02:36]} Bc4 {[%emt 0:03:06]} 22. Ncd3 {[%emt 0:04:14]} Qc7 {[%emt 0:06:43]} 23. Qf2 {[%emt 0:09:16]} c5 {[%emt 0:05:56]} 24. c3 {[%emt 0:07:07]} a5 {[%emt 0:03:34]} 25. Bf1 {[%emt 0:06:52]} axb4 {[%emt 0:04:36]} 26. axb4 {[%emt 0:00:16]} cxb4 {[%emt 0:01:44]} 27. cxb4 {[%emt 0:06:11]} Qd7 {[%emt 0:01:40]} 28. Ne5 {[%emt 0:02:09]} Qc7 {[%emt 0:03:56]} 29. Nfd3 {[%emt 0:01:08]} Nd7 {[%emt 0:02:33]} 30. Nxd7 {[%emt 0:04:43]} Qxd7 {[%emt 0:00:49]} 31. Qd2 {[%emt 0:02:43]} Qb5 {[%emt 0:01:29]} 32. Rb1 {[%emt 0:00:27]} g6 {[%emt 0:01:14]} 33. Kf2 {[%emt 0:00:10]} Ra7 {[%emt 0:00:57]} 34. Rb2 {[%emt 0:01:45]} Rea8 {[%emt 0:00:46]} 35. Ne5 {[%emt 0:01:23]} Bxf1 {[%emt 0:00:39]} 36. Rxf1 {[%emt 0:00:11]} Ra1 {[%emt 0:01:08]} 37. Nd3 {[%emt 0:01:25]} Rxf1+ {[%emt 0:00:42]} 38. Kxf1 {[%emt 0:00:01]} Ra3 {[%emt 0:00:36]} 39. Ke2 {[%emt 0:00:16]} Kg7 {[%emt 0:00:57]} 40. Ra2 {[%emt 0:00:00]} Bxb4 {[%emt 0:00:00]} 41. Rb2 {[%emt 0:05:32]} Bxd2 {[%emt 0:03:02]} 42. Rxb5 {[%emt 0:00:06]} Ra2 {[%emt 0:03:07]} 43. Rb2 {[%emt 0:07:29]} Rxb2 {[%emt 0:00:54]} 44. Nxb2 {[%emt 0:00:01]} Ba5 {[%emt 0:00:34]} 45. Nd3 {[%emt 0:01:40]} g5 {[%emt 0:00:59]} 46. Ne5 {[%emt 0:00:50]} f6 {[%emt 0:01:12]} 47. Nc6 {[%emt 0:00:28]} Kf7 {[%emt 0:00:55]} 48. h3 {[%emt 0:01:35]} Ke6 {[%emt 0:01:32]} 49. g4 {[%emt 0:03:09]} fxg4 {[%emt 0:01:03]} 50. hxg4 {[%emt 0:00:04]} Kd7 {[%emt 0:00:43]} 51. Na7 {[%emt 0:00:42]} Bb4 {[%emt 0:00:42]} 52. Kd3 {[%emt 0:00:20]} Bd6 {[%emt 0:04:25]} 53. e4 {[%emt 0:00:36]} Bb8 {[%emt 0:00:32]} 54. Nb5 {[%emt 0:00:08]} dxe4+ {[%emt 0:00:43]} 55. fxe4 {[%emt 0:00:55]} Bh2 {[%emt 0:01:03]} 56. Nc3 {[%emt 0:00:50]} Ke6 {[%emt 0:00:44]} 57. Nd5 {[%emt 0:00:09]} b5 {[%emt 0:00:18]} 58. Nc3 {[%emt 0:00:32]} b4 {[%emt 0:00:14]} 59. Ne2 {[%emt 0:00:37]} Bd6 {[%emt 0:00:57]} 60. Kc4 {[%emt 0:00:43]} h5 {[%emt 0:01:15]} 61. gxh5 {[%emt 0:00:21]} g4 {[%emt 0:00:41]} 62. h6 Kf7 63. e5 {[%emt 0:02:08]} fxe5 {[%emt 0:00:35]} 64. dxe5 {[%emt 0:00:01]} Bf8 {[%emt 0:02:14]} 65. h7 {[%emt 0:02:05]} Kg7 {[%emt 0:00:21]} 66. Nf4 {[%emt 0:00:15]} Kxh7 {[%emt 0:00:57]} 67. Kd5 {[%emt 0:00:27]} b3 {[%emt 0:00:32]} 68. Nd3 {[%emt 0:00:21]} g3 {[%emt 0:00:12]} 69. Ke4 {[%emt 0:00:58]} g2 {[%emt 0:00:06]} 1/2-1/2

[Event "Polonia Wroclaw Masters Cup-IM"]
[Site "Wroclaw"]
[Date "2019.05.01"]
[Round "4.2"]
[White "Odnorozhenko, Evgenyi"]
[Black "Fiedorek, Michal"]
[Result "0-1"]
[ECO "B31"]
[WhiteElo "2275"]
[BlackElo "2075"]
[Annotator "NA"]
[PlyCount "48"]
[EventDate "2019.04.28"]
[EventType "tourn"]
[EventCountry "POL"]
[SourceTitle "playchess.com"]
[Source "ChessBase"]
[SourceQuality "1"]
[TimeControl "40/5400+30:900+30"]

1. e4 {[%emt 0:00:00]} c5 {[%emt 0:00:00]} 2. Nf3 {[%emt 0:00:00]} Nc6 {[%emt 0:00:00]} 3. Bb5 {[%emt 0:00:00]} g6 {[%emt 0:00:53]} 4. Bxc6 {[%emt 0:00:00]} dxc6 {[%emt 0:00:09]} 5. d3 {[%emt 0:00:03]} Bg7 {[%emt 0:00:30]} 6. Nc3 {[%emt 0:00:07]} Nf6 {[%emt 0:02:12]} 7. h3 {[%emt 0:00:11]} Nd7 {[%emt 0:00:40]} 8. Be3 {[%emt 0:00:15]} e5 {[%emt 0:00:57]} 9. Qd2 {[%emt 0:00:18]} h6 {[%emt 0:01:41] B31: Sicilian: 2...Nc6 3 Bb5 g6} 10. O-O {[%emt 0:01:55]} b6 {[%emt 0:06:41]} 11. a3 {[%emt 0:00:46]} Qc7 $146 {[%emt 0:08:22]} ({Predecessor:} 11... Nf8 12. b4 Ne6 13. bxc5 f5 14. exf5 gxf5 15. Qe1 O-O 16. Rb1 e4 17. dxe4 {0-1 (36) Wang,H (2730)-Carlsen,M (2835) St Petersburg 2018}) 12. b4 {[%emt 0:00:19]} f5 {[%emt 0:05:23]} 13. exf5 {[%emt 0:15:07]} gxf5 {[%emt 0:00:15]} 14. Qe1 {[%emt 0:17:43]} O-O {[%emt 0:05:37]} 15. bxc5 {[%emt 0:01:25]} Ba6 {[%emt 0:02:53]} 16. cxb6 {[%emt 0:02:38]} axb6 {[%emt 0:00:16]} 17. Bd2 {[%emt 0:00:10]} e4 {[%emt 0:05:57]} 18. Nh4 {[%emt 0:03:00]} Qd6 {[%emt 0:11:27]} 19. Qc1 {[%emt 0:03:40]} Qf6 {[%emt 0:02:48]} 20. g3 {[%emt 0:00:09]} exd3 {[%emt 0:02:17]} 21. cxd3 {[%emt 0:01:29]} Nc5 {[%emt 0:13:27]} 22. Qc2 {[%emt 0:03:44]} Bxd3 {[%emt 0:01:20]} 23. Qa2+ {[%emt 0:00:06]} Kh7 {[%emt 0:00:56]} 24. Rfd1 {[%emt 0:00:27] [#]} f4 $19 {[%emt 0:01:31]} 0-1

[Event "Polonia Wroclaw Masters Cup-IM"]
[Site "Wroclaw"]
[Date "2019.05.01"]
[Round "4.3"]
[White "Martynyuk, Elizaveta"]
[Black "Mahitosh Dey"]
[Result "1/2-1/2"]
[ECO "C54"]
[WhiteElo "2141"]
[BlackElo "2187"]
[Annotator "NA"]
[PlyCount "109"]
[EventDate "2019.04.28"]
[EventType "tourn"]
[EventCountry "POL"]
[SourceTitle "playchess.com"]
[Source "ChessBase"]
[SourceQuality "1"]
[TimeControl "40/5400+30:900+30"]

1. e4 {[%emt 0:01:47]} e5 {[%emt 0:00:00]} 2. Nf3 {[%emt 0:00:08]} Nc6 {[%emt 0:00:00]} 3. Bc4 {[%emt 0:00:03]} Bc5 {[%emt 0:00:00]} 4. c3 {[%emt 0:00:05]} Nf6 {[%emt 0:00:00]} 5. d3 {[%emt 0:00:02]} O-O {[%emt 0:00:00]} 6. O-O {[%emt 0:00:04]} d6 {[%emt 0:00:06]} 7. Bb3 {[%emt 0:00:07]} h6 {[%emt 0:00:06]} 8. Nbd2 {[%emt 0:00:05]} Be6 {[%emt 0:00:08]} 9. Nc4 {[%emt 0:00:50]} Bb6 {[%emt 0:01:02]} 10. Be3 {[%emt 0:10:27]} Ne7 {[%emt 0:01:24]} 11. Nh4 {[%emt 0:04:42]} Qd7 {[%emt 0:05:46]} 12. Re1 {[%emt 0:05:48]} g5 {[%emt 0:03:08]} 13. Nf3 {[%emt 0:12:59]} Ng6 {[%emt 0:02:46]} 14. d4 {[%emt 0:04:30]} Bxc4 $14 {[%emt 0:03:52]} 15. Bxc4 {[%emt 0:00:07]} Rfe8 {[%emt 0:00:16]} 16. a4 {[%emt 0:15:26]} c6 {[%emt 0:04:06]} 17. a5 {[%emt 0:04:38]} Bc7 {[%emt 0:00:45]} 18. d5 {[%emt 0:01:21]} c5 {[%emt 0:00:51]} 19. b4 {[%emt 0:06:09]} b5 {[%emt 0:01:18]} 20. axb6 {[%emt 0:01:38]} axb6 {[%emt 0:00:37]} 21. bxc5 {[%emt 0:00:23]} bxc5 {[%emt 0:00:07]} 22. Qb3 {[%emt 0:00:19]} Reb8 {[%emt 0:01:00]} 23. Rxa8 {[%emt 0:00:12]} Rxa8 {[%emt 0:00:03]} 24. Qb7 {[%emt 0:00:22]} Qc8 {[%emt 0:00:34]} 25. Qxc8+ {[%emt 0:02:21]} Rxc8 {[%emt 0:00:17]} 26. h4 {[%emt 0:00:22]} g4 {[%emt 0:00:53]} 27. Nd2 {[%emt 0:00:17]} h5 {[%emt 0:00:12]} 28. Ra1 {[%emt 0:01:03]} Nd7 {[%emt 0:01:05]} 29. Ra7 {[%emt 0:01:25]} Nb8 {[%emt 0:00:37]} 30. g3 {[%emt 0:04:26]} Nf8 {[%emt 0:00:58]} 31. Bb5 {[%emt 0:01:29]} Nfd7 {[%emt 0:01:37]} 32. Kf1 {[%emt 0:02:01]} Nb6 {[%emt 0:00:16]} 33. Ke2 {[%emt 0:00:39]} Bd8 {[%emt 0:02:00]} 34. Rb7 {[%emt 0:00:10]} Bc7 {[%emt 0:00:37]} 35. f3 {[%emt 0:00:20]} f6 {[%emt 0:01:30]} 36. fxg4 {[%emt 0:00:21]} hxg4 {[%emt 0:00:06]} 37. h5 {[%emt 0:01:19]} Kh8 {[%emt 0:00:07]} 38. h6 {[%emt 0:00:21]} f5 {[%emt 0:00:04]} 39. c4 {[%emt 0:01:14]} fxe4 {[%emt 0:02:21]} 40. Nxe4 {[%emt 0:00:00]} N8d7 {[%emt 0:00:00]} 41. Nxd6 {[%emt 0:00:25]} Bxd6 {[%emt 0:02:24]} 42. Bxd7 {[%emt 0:00:04]} Rb8 {[%emt 0:00:18]} 43. Rxb8+ {[%emt 0:02:30]} Bxb8 {[%emt 0:00:04]} 44. Bxg4 {[%emt 0:00:07]} Nxc4 {[%emt 0:00:02]} 45. Bxc5 {[%emt 0:00:07]} e4 {[%emt 0:02:50]} 46. Bf5 {[%emt 0:00:27]} Bxg3 {[%emt 0:00:24]} 47. Bxe4 {[%emt 0:00:06]} Bf4 {[%emt 0:01:14]} 48. Bd4+ {[%emt 0:00:08]} Be5 {[%emt 0:00:09]} 49. Kd3 {[%emt 0:00:19]} Nb2+ {[%emt 0:00:28]} 50. Kc3 {[%emt 0:06:07]} Na4+ {[%emt 0:00:13]} 51. Kc4 {[%emt 0:00:57]} Nb2+ {[%emt 0:00:07]} 52. Kc5 {[%emt 0:12:24]} Na4+ {[%emt 0:00:15]} 53. Kc4 {[%emt 0:08:27]} Nb2+ {[%emt 0:00:03]} 54. Kc3 {[%emt 0:04:14]} Na4+ {[%emt 0:00:21]} 55. Kc4 1/2-1/2

[Event "Polonia Wroclaw Masters Cup-IM"]
[Site "Wroclaw"]
[Date "2019.05.01"]
[Round "4.4"]
[White "Czopor, Maciej"]
[Black "Baum, Jonasz"]
[Result "1/2-1/2"]
[ECO "B12"]
[WhiteElo "2229"]
[BlackElo "2290"]
[Annotator "NA"]
[PlyCount "83"]
[EventDate "2019.04.28"]
[EventType "tourn"]
[EventCountry "POL"]
[SourceTitle "playchess.com"]
[Source "ChessBase"]
[SourceQuality "1"]
[TimeControl "40/5400+30:900+30"]

1. e4 {[%emt 0:00:00]} c6 {[%emt 0:00:00]} 2. d4 {[%emt 0:00:12]} d5 {[%emt 0:00:00]} 3. e5 {[%emt 0:04:01]} Bf5 {[%emt 0:00:00]} 4. Nf3 {[%emt 0:00:30]} e6 {[%emt 0:00:10]} 5. Be2 {[%emt 0:01:56]} c5 {[%emt 0:03:32]} 6. O-O {[%emt 0:07:40]} Nc6 {[%emt 0:00:50]} 7. dxc5 {[%emt 0:03:03] B12: Caro-Kann: Advance Variation} (7. Be3 cxd4 8. Nxd4 Nxd4 9. Qxd4 Ne7 10. Bb5+ Nc6 11. Qa4 Qc8 12. Nd2 a6 13. Bd3 Bxd3 14. cxd3 Qd7 15. Rac1 Nxe5 16. Qd4 {1-0 (55) Nepomniachtchi,I (2757)-Ivanchuk,V (2710) Jerusalem 2018}) 7... Bxc5 {[%emt 0:00:27]} 8. a3 {[%emt 0:00:49]} a6 {[%emt 0:04:00]} 9. b4 {[%emt 0:10:49]} Ba7 $146 {[%emt 0:00:19]} ({Predecessor:} 9... Bb6 10. Nbd2 Bc7 11. Bb2 Nge7 12. Re1 Qb8 13. c4 O-O {0-1 (38) Margraf,D (2291)-Lai Hop,D (2142) Bremen 2015}) 10. Bb2 {[%emt 0:00:40]} Nge7 {[%emt 0:00:34]} 11. Nbd2 {[%emt 0:00:56]} O-O {[%emt 0:07:48]} 12. c4 {[%emt 0:03:04]} d4 {[%emt 0:02:57]} 13. Re1 {[%emt 0:01:51]} Ng6 {[%emt 0:00:52]} 14. Nb3 {[%emt 0:07:26]} d3 {[%emt 0:21:39]} 15. Bf1 {[%emt 0:00:27]} Nh4 {[%emt 0:08:56]} 16. g3 {[%emt 0:15:48]} Nxf3+ {[%emt 0:02:37]} 17. Qxf3 {[%emt 0:00:17]} Nd4 {[%emt 0:00:46]} 18. Bxd4 {[%emt 0:01:38]} Bxd4 {[%emt 0:00:07]} 19. Rad1 {[%emt 0:01:08]} f6 {[%emt 0:15:55]} 20. Bxd3 {[%emt 0:05:16]} fxe5 {[%emt 0:07:33]} 21. Nxd4 {[%emt 0:00:38]} exd4 {[%emt 0:01:45]} 22. Bxf5 {[%emt 0:00:24]} Rxf5 {[%emt 0:02:00]} 23. Qxb7 {[%emt 0:02:42]} e5 {[%emt 0:00:40]} 24. c5 {[%emt 0:00:48]} Rc8 {[%emt 0:02:25]} 25. Qxa6 {[%emt 0:00:48]} Qd7 {[%emt 0:01:50]} 26. Qc4+ {[%emt 0:04:52]} Kh8 {[%emt 0:00:37]} 27. Qe2 {[%emt 0:00:58]} Rcf8 {[%emt 0:00:51]} 28. Rd2 {[%emt 0:07:08]} Rxf2 {[%emt 0:05:15]} 29. Qxf2 {[%emt 0:00:12]} Rxf2 {[%emt 0:00:01]} 30. Rxf2 {[%emt 0:00:16]} h5 {[%emt 0:02:55]} 31. Rxe5 {[%emt 0:00:58]} d3 {[%emt 0:00:07] [#]} 32. c6 $2 {[%emt 0:03:26]} ({Stronger than} 32. Rxh5+ Kg8 $11) (32. Re1 $1 $18) 32... Qxc6 {[%emt 0:00:51]} 33. Rxh5+ {[%emt 0:00:19]} Kg8 {[%emt 0:00:05]} 34. Rc5 {[%emt 0:00:47]} Qh6 {[%emt 0:02:02]} 35. Re5 {[%emt 0:14:49]} Qc1+ {[%emt 0:00:09]} 36. Rf1 {[%emt 0:00:17]} d2 {[%emt 0:00:59]} 37. Rd5 {[%emt 0:00:10]} Qe1 {[%emt 0:01:28]} 38. Rd3 {[%emt 0:00:52]} Qe2 {[%emt 0:01:22]} 39. Rd8+ {[%emt 0:00:27]} Kh7 {[%emt 0:00:01]} 40. b5 {[%emt 0:00:00]} Qe3+ $11 {[%emt 0:00:00]} 41. Rf2 {[%emt 0:01:16]} Qe1+ {[%emt 0:01:41]} 42. Rf1 {[%emt 0:00:20]} 1/2-1/2

[Event "Polonia Wroclaw Masters Cup-IM"]
[Site "Wroclaw"]
[Date "2019.05.01"]
[Round "4.5"]
[White "Frolov, Artur"]
[Black "Stachowiak, Kamil"]
[Result "1/2-1/2"]
[ECO "B40"]
[WhiteElo "2440"]
[BlackElo "2439"]
[Annotator "ChessBase"]
[PlyCount "70"]
[EventDate "2019.04.28"]
[EventType "tourn"]
[EventCountry "POL"]
[SourceTitle "playchess.com"]
[Source "ChessBase"]
[SourceQuality "1"]
[TimeControl "40/5400+30:900+30"]

1. e4 c5 2. Nf3 e6 3. g3 Nc6 4. Bg2 d6 {[%emt 0:00:28]} 5. O-O Nf6 6. Re1 Be7 7. c3 {[%emt 0:10:47]} O-O 8. d4 cxd4 9. cxd4 d5 {[%emt 0:06:00]} 10. e5 {[%emt 0:01:03]} Ne4 {[%emt 0:00:12]} 11. Nbd2 {[%emt 0:00:53]} Nxd2 {[%emt 0:02:31]} 12. Bxd2 {[%emt 0:00:05]} Qb6 {[%emt 0:00:58]} 13. Bc3 {[%emt 0:00:52]} Bd7 {[%emt 0:00:07]} 14. Qd2 {[%emt 0:03:54]} a5 {[%emt 0:01:25]} 15. h4 {[%emt 0:03:21]} a4 {[%emt 0:01:36]} 16. h5 {[%emt 0:00:06]} Na5 {[%emt 0:08:25]} 17. h6 {[%emt 0:05:41]} g6 {[%emt 0:00:08]} 18. Qf4 {[%emt 0:09:30]} Rfc8 {[%emt 0:05:22]} 19. Rac1 {[%emt 0:04:05]} Nc4 {[%emt 0:19:11]} 20. Rc2 {[%emt 0:02:26]} Qd8 {[%emt 0:08:29]} 21. Rec1 {[%emt 0:09:12]} Rc6 {[%emt 0:05:23]} 22. Bf1 {[%emt 0:08:26]} Rac8 {[%emt 0:00:34]} 23. Bd3 {[%emt 0:00:39]} a3 {[%emt 0:13:52]} 24. b3 {[%emt 0:14:01]} Nb2 {[%emt 0:00:12]} 25. Qd2 {[%emt 0:07:28]} Bf8 {[%emt 0:07:10]} 26. Bxb2 axb2 27. Rxc6 Rxc6 28. Rxc6 Bxc6 29. Qxb2 Bxh6 30. b4 Ba4 31. Qc3 {[%emt 0:10:11]} Bf8 32. a3 {[%emt 0:01:43]} h5 33. Bc2 Bb5 {[%emt 0:09:46]} 34. Bd3 Ba4 35. Bc2 Bb5 1/2-1/2

[Event "Polonia Wroclaw Masters Cup-IM"]
[Site "Wroclaw"]
[Date "2019.05.01"]
[Round "5.1"]
[White "Stachowiak, Kamil"]
[Black "Krzywda, Andrzej"]
[Result "1-0"]
[ECO "A15"]
[WhiteElo "2439"]
[BlackElo "2195"]
[Annotator "NA"]
[PlyCount "117"]
[EventDate "2019.04.28"]
[EventType "tourn"]
[EventCountry "POL"]
[SourceTitle "playchess.com"]
[Source "ChessBase"]
[SourceQuality "1"]
[TimeControl "40/5400+30:900+30"]

1. c4 {[%emt 0:00:00]} Nf6 {[%emt 0:00:00]} 2. g3 {[%emt 0:00:05]} e6 {[%emt 0:00:31]} 3. b3 {[%emt 0:01:26]} d5 {[%emt 0:00:53]} 4. Bb2 {[%emt 0:01:29]} Be7 {[%emt 0:01:18]} 5. Bg2 {[%emt 0:01:43]} O-O {[%emt 0:00:22]} 6. Nf3 {[%emt 0:00:07]} b6 {[%emt 0:01:21]} 7. O-O {[%emt 0:02:07]} Bb7 {[%emt 0:00:19]} 8. e3 {[%emt 0:00:13]} dxc4 {[%emt 0:05:23]} 9. bxc4 {[%emt 0:00:09]} c5 {[%emt 0:01:11]} 10. d4 {[%emt 0:01:05]} cxd4 {[%emt 0:00:54]} 11. exd4 {[%emt 0:00:08]} Nc6 {[%emt 0:06:19]} 12. Nbd2 {[%emt 0:06:31]} Rc8 {[%emt 0:01:58]} 13. Nb3 {[%emt 0:02:39]} Qd6 {[%emt 0:05:45]} 14. Qe2 {[%emt 0:19:38]} Rfd8 {[%emt 0:08:43]} 15. Rfe1 {[%emt 0:05:09]} Qb8 {[%emt 0:02:02]} 16. Rac1 {[%emt 0:12:17]} Bb4 {[%emt 0:08:02]} 17. Red1 {[%emt 0:00:35]} Ba6 {[%emt 0:04:33]} 18. Qe3 {[%emt 0:04:39]} Ne7 {[%emt 0:03:10]} 19. Ne5 {[%emt 0:06:46]} Bd6 {[%emt 0:04:13]} 20. Bh3 {[%emt 0:06:46]} Bxe5 {[%emt 0:03:40]} 21. dxe5 {[%emt 0:00:16]} Nd7 {[%emt 0:01:43]} 22. Ba3 {[%emt 0:01:18]} Ng6 {[%emt 0:02:58]} 23. Bd6 {[%emt 0:00:34]} Qa8 {[%emt 0:00:08]} 24. Bf1 {[%emt 0:04:16]} Bb7 {[%emt 0:04:06]} 25. Be2 {[%emt 0:00:28]} Nb8 {[%emt 0:05:53]} 26. h4 {[%emt 0:10:07]} Nc6 {[%emt 0:00:42]} 27. h5 {[%emt 0:01:16]} Nge7 {[%emt 0:01:03]} 28. g4 {[%emt 0:01:05]} h6 {[%emt 0:00:26]} 29. Kh2 {[%emt 0:02:15]} Rd7 {[%emt 0:03:17]} 30. Bd3 {[%emt 0:02:39]} Rcd8 {[%emt 0:08:06]} 31. c5 {[%emt 0:00:38]} Nb4 {[%emt 0:02:53]} 32. Bb1 {[%emt 0:01:10]} Nbd5 {[%emt 0:03:24]} 33. Qg3 {[%emt 0:01:27]} Kh8 {[%emt 0:02:09]} 34. Rg1 {[%emt 0:01:41]} Rg8 {[%emt 0:01:34]} 35. f4 {[%emt 0:03:36]} Qe8 {[%emt 0:05:25]} 36. Nd4 {[%emt 0:01:05]} bxc5 {[%emt 0:00:34]} 37. Nb3 {[%emt 0:00:21]} Rd8 {[%emt 0:00:58]} 38. Nxc5 {[%emt 0:00:04]} Bc8 {[%emt 0:00:25]} 39. Qf3 {[%emt 0:00:56]} Qb5 {[%emt 0:01:41]} 40. Rg2 {[%emt 0:00:00]} a5 {[%emt 0:00:00]} 41. a4 {[%emt 0:08:02]} Qe8 {[%emt 0:06:24]} 42. Rcg1 {[%emt 0:02:23]} Bd7 {[%emt 0:05:56]} 43. g5 {[%emt 0:00:56]} Bc6 {[%emt 0:02:00]} 44. gxh6 {[%emt 0:03:45]} Nf5 {[%emt 0:03:08]} 45. Bxf5 {[%emt 0:01:33]} exf5 {[%emt 0:00:01]} 46. Rxg7 {[%emt 0:00:19]} Nf6 {[%emt 0:01:04]} 47. Qd3 {[%emt 0:01:27]} Rxd6 {[%emt 0:01:01]} 48. Rxg8+ {[%emt 0:00:21]} Nxg8 {[%emt 0:00:15]} 49. Qxd6 {[%emt 0:00:28]} f6 {[%emt 0:00:10]} 50. Rg6 {[%emt 0:00:17]} Bf3 {[%emt 0:00:31]} 51. Qc7 {[%emt 0:01:26]} Ne7 {[%emt 0:00:27]} 52. exf6 {[%emt 0:00:10]} Qf7 {[%emt 0:01:22]} 53. fxe7 {[%emt 0:01:05]} Qa2+ {[%emt 0:00:15]} 54. Kh3 {[%emt 0:00:05]} Bg4+ {[%emt 0:00:19]} 55. Rxg4 {[%emt 0:00:05]} fxg4+ {[%emt 0:00:06]} 56. Kh4 {[%emt 0:00:35]} Qf2+ {[%emt 0:01:16]} 57. Kg5 {[%emt 0:00:05]} Qe3 {[%emt 0:00:40]} 58. e8=Q+ {[%emt 0:00:21]} Qxe8 {[%emt 0:00:07]} 59. Qg7# {[%emt 0:00:04]} 1-0

[Event "Polonia Wroclaw Masters Cup-IM"]
[Site "Wroclaw"]
[Date "2019.05.01"]
[Round "5.3"]
[White "Mahitosh Dey"]
[Black "Czopor, Maciej"]
[Result "1/2-1/2"]
[ECO "B80"]
[WhiteElo "2187"]
[BlackElo "2229"]
[Annotator "NA"]
[PlyCount "165"]
[EventDate "2019.04.28"]
[EventType "tourn"]
[EventCountry "POL"]
[SourceTitle "playchess.com"]
[Source "ChessBase"]
[SourceQuality "1"]
[TimeControl "40/5400+30:900+30"]

1. e4 {[%emt 0:00:28]} c5 {[%emt 0:00:00]} 2. Nf3 {[%emt 0:00:04]} e6 {[%emt 0:00:00]} 3. d4 {[%emt 0:00:04]} cxd4 {[%emt 0:00:00]} 4. Nxd4 {[%emt 0:00:04]} Nf6 {[%emt 0:00:04]} 5. Nc3 {[%emt 0:00:04]} d6 {[%emt 0:00:03]} 6. Be3 {[%emt 0:00:11]} a6 {[%emt 0:00:47]} 7. Be2 {[%emt 0:00:17]} Be7 {[%emt 0:00:40]} 8. O-O {[%emt 0:00:09]} O-O {[%emt 0:00:24]} 9. Nb3 {[%emt 0:00:04]} Qc7 {[%emt 0:10:29]} 10. f4 {[%emt 0:00:35]} b5 {[%emt 0:02:06]} 11. Bf3 {[%emt 0:04:54]} Bb7 {[%emt 0:00:57]} 12. Nd2 {[%emt 0:06:16]} Nbd7 {[%emt 0:04:11]} 13. g4 {[%emt 0:02:12]} Nb6 {[%emt 0:01:41]} 14. g5 {[%emt 0:00:34]} Nfd7 {[%emt 0:00:08]} 15. Ne2 {[%emt 0:00:45]} Rac8 {[%emt 0:01:08]} 16. c3 {[%emt 0:00:08]} Rfe8 {[%emt 0:01:02]} 17. h4 {[%emt 0:00:50]} Bf8 {[%emt 0:08:36]} 18. Qe1 {[%emt 0:00:43]} Nc4 {[%emt 0:11:26]} 19. Nxc4 {[%emt 0:00:13]} Qxc4 {[%emt 0:01:45]} 20. Ng3 {[%emt 0:00:15]} a5 {[%emt 0:05:33]} 21. h5 {[%emt 0:01:21]} d5 {[%emt 0:08:35]} 22. e5 {[%emt 0:01:01]} b4 {[%emt 0:00:34]} 23. Be2 {[%emt 0:00:52]} Qc6 {[%emt 0:00:29]} 24. Rc1 {[%emt 0:01:29]} bxc3 {[%emt 0:06:57]} 25. Rxc3 {[%emt 0:00:59]} Qa4 {[%emt 0:00:07]} 26. a3 {[%emt 0:03:06]} Rxc3 {[%emt 0:02:53]} 27. Qxc3 {[%emt 0:00:05]} Rc8 {[%emt 0:00:22]} 28. Qd2 {[%emt 0:02:46]} Rc2 {[%emt 0:04:52]} 29. Bd1 {[%emt 0:00:37]} Rxd2 {[%emt 0:00:27]} 30. Bxa4 {[%emt 0:00:04]} Rd3 {[%emt 0:00:24]} 31. Bf2 {[%emt 0:03:04]} Nc5 {[%emt 0:00:38]} 32. Bc2 {[%emt 0:00:21]} Rd2 {[%emt 0:00:52]} 33. Rc1 {[%emt 0:00:34]} Nd3 {[%emt 0:03:09]} 34. Bxd3 {[%emt 0:01:20]} Rxd3 {[%emt 0:00:09]} 35. Rc7 {[%emt 0:00:50]} Rb3 {[%emt 0:01:25]} 36. Rd7 {[%emt 0:00:12]} Rxb2 {[%emt 0:03:02]} 37. Rd8 {[%emt 0:00:03]} Rc2 {[%emt 0:01:18]} 38. Rb8 {[%emt 0:02:48]} Ba6 {[%emt 0:04:40]} 39. Ra8 {[%emt 0:00:14]} Bd3 {[%emt 0:00:39]} 40. Be1 {[%emt 0:00:00]} Rc7 {[%emt 0:00:00]} 41. Bxa5 {[%emt 0:01:16]} Ra7 {[%emt 0:06:59]} 42. Rxa7 {[%emt 0:00:43]} Bc5+ {[%emt 0:00:06]} 43. Kg2 {[%emt 0:00:06]} Bxa7 {[%emt 0:00:05]} 44. Bd2 {[%emt 0:00:12]} f6 {[%emt 0:00:58]} 45. gxf6 {[%emt 0:00:20]} gxf6 {[%emt 0:00:08]} 46. exf6 {[%emt 0:00:16]} Bb5 {[%emt 0:01:47]} 47. Bc3 {[%emt 0:02:22]} d4 {[%emt 0:01:12]} 48. Bb4 {[%emt 0:01:33]} Bc6+ {[%emt 0:00:31]} 49. Kf2 {[%emt 0:01:15]} Kf7 {[%emt 0:00:57]} 50. Ke2 {[%emt 0:00:14]} Bb5+ {[%emt 0:03:56]} 51. Kf3 {[%emt 0:00:26]} d3 {[%emt 0:00:48]} 52. Ne4 {[%emt 0:01:52]} Bc6 {[%emt 0:00:13]} 53. Ba5 {[%emt 0:00:09]} Bc5 {[%emt 0:01:18]} 54. Bc3 {[%emt 0:00:09]} Bxa3 {[%emt 0:02:17]} 55. Ke3 {[%emt 0:00:04]} Bxe4 {[%emt 0:03:26]} 56. Kxe4 {[%emt 0:00:11]} Bc1 {[%emt 0:00:24]} 57. Kxd3 {[%emt 0:00:16]} Bxf4 {[%emt 0:00:01]} 58. Ke4 {[%emt 0:00:12]} Bg5 {[%emt 0:00:06]} 59. Be5 {[%emt 0:02:29]} Bxf6 {[%emt 0:00:07]} 60. Bf4 {[%emt 0:00:02]} Bb2 {[%emt 0:00:34]} 61. Bg5 {[%emt 0:00:44]} Bc3 {[%emt 0:00:16]} 62. Bf4 {[%emt 0:00:31]} Kf6 {[%emt 0:00:09]} 63. Be3 {[%emt 0:00:06]} Be5 {[%emt 0:00:41]} 64. Bd2 {[%emt 0:00:07]} Bg3 {[%emt 0:00:22]} 65. Bc1 {[%emt 0:00:37]} Bh4 {[%emt 0:03:02]} 66. Bd2 {[%emt 0:00:00]} Bg5 {[%emt 0:00:30]} 67. Bc3+ {[%emt 0:00:00]} Ke7 {[%emt 0:00:10]} 68. Bb4+ {[%emt 0:00:19]} Kf7 {[%emt 0:00:06]} 69. Bc3 {[%emt 0:00:01]} Bf6 {[%emt 0:00:27]} 70. Bd2 {[%emt 0:00:04]} Ke7 {[%emt 0:00:05]} 71. Bf4 {[%emt 0:00:22]} Bh4 {[%emt 0:00:29]} 72. Be5 {[%emt 0:00:12]} Kf7 {[%emt 0:00:43]} 73. Bc3 {[%emt 0:00:08]} Bg3 {[%emt 0:01:04]} 74. Bb2 {[%emt 0:00:09]} Ke7 {[%emt 0:00:24]} 75. Bc3 {[%emt 0:00:07]} Bd6 {[%emt 0:01:04]} 76. Bb2 {[%emt 0:00:24]} Bc5 {[%emt 0:00:15]} 77. Be5 {[%emt 0:00:09]} Bf2 {[%emt 0:00:29]} 78. Bc3 {[%emt 0:00:11]} Bh4 {[%emt 0:00:03]} 79. Bd4 {[%emt 0:00:09]} Bf6 {[%emt 0:00:04]} 80. Be3 {[%emt 0:00:10]} Bb2 {[%emt 0:00:22]} 81. Bg5+ {[%emt 0:00:55]} Kd6 {[%emt 0:00:07]} 82. Bf4+ {[%emt 0:00:07]} e5 {[%emt 0:00:05]} 83. Bxe5+ {[%emt 0:00:09] Kxe5+} 1/2-1/2